bitfinex/quotes_SOLUSD_20250602
["timestamp","ask_amount","ask_price","bid_price","bid_amount"]
[1748840411013,39.66,155.37,155.34,14.45786014]
[1748840411210,46.09625147,155.37,155.33,14.45786014]
[1748840411609,14.45786014,155.36,155.32,14.45786014]
[1748840412202,20.89487117,155.36,155.32,14.45786014]
[1748840412618,6.43701103,155.36,155.32,14.45786014]
[1748840412901,20.89487117,155.36,155.32,14.45786014]
[1748840414695,20.89487117,155.36,155.29,1.5057]
[1748840415018,14.45786014,155.32,155.28,14.45786014]
[1748840415318,49.94,155.31,155.29,14.45786014]
[1748840415521,39.62,155.3,155.29,14.45786014]
[1748840416321,39.62,155.3,155.28,14.45786014]
[1748840416522,39.62,155.3,155.29,14.45786014]
[1748840418304,39.62,155.3,155.28,14.45786014]
[1748840420520,39.62,155.3,155.28,20.89772967]
[1748840421230,39.62,155.3,155.29,14.45786014]
[1748840422825,39.58,155.3,155.29,14.45786014]
[1748840425425,39.58,155.3,155.29,20.89742482]
[1748840428228,10.32,155.31,155.29,20.89742482]
[1748840428437,10.32,155.31,155.3,15.98486014]
[1748840429133,159.22,155.35,155.3,15.98486014]
[1748840429328,39.56,155.34,155.31,6.43873543]
[1748840429831,10.32,155.35,155.31,22.53557401]
[1748840430035,49.88,155.35,155.31,28.96207401]
[1748840430219,10.32,155.35,155.32,18.64964886]
[1748840430627,10.32,155.35,155.34,14.45786014]
[1748840431328,10.32,155.35,155.34,20.89535209]
[1748840431835,10.32,155.39,155.34,36.98908197]
[1748840432025,10.32,155.39,155.38,14.45786014]
[1748840432411,49.88,155.39,155.38,14.45786014]
[1748840433923,49.88,155.39,155.38,20.89369486]
[1748840434434,10.32,155.39,155.38,20.89369486]
[1748840434617,49.88,155.39,155.38,20.89369486]
[1748840435421,10.32,155.39,155.38,20.89369486]
[1748840435628,39.56,155.4,155.38,20.89369486]
[1748840435822,39.56,155.4,155.39,14.45786014]
[1748840437231,39.56,155.4,155.39,20.89328069]
[1748840438148,10.32,155.43,155.39,62.98183207]
[1748840438330,10.32,155.43,155.42,14.45786014]
[1748840438921,10.32,155.43,155.39,48.52397193]
[1748840439122,10.32,155.43,155.39,6.43542055]
[1748840439424,10.32,155.43,155.41,14.45786014]
[1748840439834,10.32,155.43,155.42,14.45786014]
[1748840441228,10.32,155.45,155.43,6.43376439]
[1748840441432,39.54,155.44,155.43,6.43376439]
[1748840441629,39.54,155.44,155.43,20.89162453]
[1748840442923,39.54,155.44,155.43,14.45786014]
[1748840443148,39.54,155.44,155.42,14.45786014]
[1748840449656,39.54,155.44,155.43,14.45786014]
[1748840450453,39.54,155.44,155.42,14.45786014]
[1748840450653,53.99786014,155.44,155.4,14.45786014]
[1748840450853,39.54,155.44,155.41,14.45786014]
[1748840451456,39.54,155.44,155.42,14.45786014]
[1748840451945,39.54,155.44,155.41,14.45786014]
[1748840453154,45.97347853,155.44,155.41,14.45786014]
[1748840453452,14.45786014,155.42,155.36,14.45786014]
[1748840453774,14.45786014,155.42,155.34,14.45786014]
[1748840453775,20.89369486,155.38,155.34,14.45786014]
[1748840454059,64.23786014,155.37,155.33,14.45786014]
[1748840456157,70.67416304,155.37,155.33,14.45786014]
[1748840456389,70.67416304,155.37,155.32,14.45786014]
[1748840457463,70.67416304,155.37,155.32,20.89617159]
[1748840457962,70.67416304,155.37,155.33,14.45786014]
[1748840460249,70.67416304,155.37,155.32,14.45786014]
[1748840460449,14.45786014,155.36,155.31,14.45786014]
[1748840460650,14.45786014,155.36,155.32,14.45786014]
[1748840460849,14.45786014,155.36,155.31,14.45786014]
[1748840461333,14.45786014,155.36,155.32,14.45786014]
[1748840461541,70.67416304,155.37,155.32,14.45786014]
[1748840461959,70.67416304,155.37,155.33,14.45786014]
[1748840462559,56.2163029,155.37,155.33,14.45786014]
[1748840463072,10.26,155.37,155.36,14.45786014]
[1748840463248,49.76,155.37,155.36,14.45786014]
[1748840463446,10.26,155.37,155.36,14.45786014]
[1748840463647,49.76,155.37,155.36,14.45786014]
[1748840463971,49.76,155.37,155.35,14.45786014]
[1748840464167,10.26,155.37,155.35,14.45786014]
[1748840464669,39.5,155.36,155.35,14.45786014]
[1748840464969,39.5,155.36,155.35,20.89479437]
[1748840465864,10.26,155.37,155.35,20.89479437]
[1748840466161,49.76,155.37,155.36,14.45786014]
[1748840466377,10.26,155.37,155.36,28.91572028]
[1748840466579,148.9,155.43,155.36,28.91572028]
[1748840466580,39.5,155.39,155.37,6.43624895]
[1748840466748,39.5,155.4,155.38,14.45786014]
[1748840466947,10.28,155.41,155.39,14.45786014]
[1748840467156,10.28,155.41,155.4,14.45786014]
[1748840467356,49.78,155.41,155.4,14.45786014]
[1748840467878,10.28,155.41,155.4,14.45786014]
[1748840468083,49.78,155.41,155.4,14.45786014]
[1748840468388,70.67258657,155.41,155.34,1.5572]
[1748840468598,14.45786014,155.4,155.36,14.45786014]
[1748840468895,20.89318059,155.4,155.35,14.45786014]
[1748840469382,14.45786014,155.36,155.31,14.45786014]
[1748840469578,64.25786014,155.35,155.3,1.6025]
[1748840469782,10.28,155.34,155.31,14.45786014]
[1748840470576,10.28,155.34,155.3,8.04156867]
[1748840470768,10.28,155.34,155.31,14.45786014]
[1748840471670,10.28,155.34,155.31,20.89642158]
[1748840471872,10.28,155.34,155.32,14.45786014]
[1748840472175,10.28,155.34,155.3,14.45786014]
[1748840472886,10.28,155.34,155.31,14.45786014]
[1748840473185,10.28,155.34,155.3,14.45786014]
[1748840473879,10.28,155.34,155.31,14.45786014]
[1748840474062,10.28,155.34,155.33,14.45786014]
[1748840474386,49.78,155.34,155.33,14.45786014]
[1748840474566,49.78,155.34,155.28,22.53992787]
[1748840474772,49.78,155.34,155.31,14.45786014]
[1748840476383,49.78,155.34,155.32,14.45786014]
[1748840476893,49.78,155.34,155.33,14.45786014]
[1748840477695,10.28,155.34,155.33,20.89576653]
[1748840477997,10.28,155.34,155.33,22.40706653]
[1748840478886,148.9,155.39,155.33,22.40706653]
[1748840478887,39.54,155.37,155.33,22.40706653]
[1748840479091,10.28,155.38,155.36,14.45786014]
[1748840479286,39.54,155.37,155.33,7.94920639]
[1748840480181,10.28,155.38,155.33,7.94920639]
[1748840480394,39.54,155.37,155.33,7.94920639]
[1748840480595,39.54,155.37,155.36,14.45786014]
[1748840482395,39.54,155.37,155.35,14.45786014]
[1748840482989,39.54,155.37,155.33,1.5113]
[1748840483295,39.54,155.37,155.34,14.45786014]
[1748840483992,39.54,155.37,155.35,14.45786014]
[1748840484383,39.54,155.37,155.36,14.45786014]
[1748840485971,53.99786014,155.37,155.33,14.45786014]
[1748840486173,60.43411496,155.37,155.33,14.45786014]
[1748840486998,45.97625482,155.37,155.33,14.45786014]
[1748840488103,39.54,155.37,155.34,14.45786014]
[1748840488476,45.97634581,155.37,155.33,14.45786014]
[1748840490192,45.97634581,155.37,155.34,14.45786014]
[1748840490404,39.54,155.37,155.34,14.45786014]
[1748840490601,39.54,155.37,155.3,6.43915003]
[1748840490904,39.54,155.37,155.34,14.45786014]
[1748840491698,45.97628082,155.37,155.34,14.45786014]
[1748840492393,39.54,155.37,155.34,14.45786014]
[1748840492804,45.97627692,155.37,155.33,14.45786014]
[1748840492986,60.43413706,155.37,155.33,14.45786014]
[1748840494876,45.97627692,155.37,155.33,14.45786014]
[1748840495088,45.97627692,155.37,155.32,6.43800394]
[1748840495296,39.54,155.37,155.34,14.45786014]
[1748840495498,10.28,155.38,155.36,14.45786014]
[1748840495692,39.5,155.37,155.36,14.45786014]
[1748840496100,10.28,155.38,155.36,14.45786014]
[1748840496305,39.5,155.37,155.36,14.45786014]
[1748840497206,10.28,155.38,155.36,14.45786014]
[1748840497412,39.48,155.37,155.35,8.0100916]
[1748840498722,39.48,155.37,155.36,14.45786014]
[1748840499915,39.48,155.37,155.35,14.45786014]
[1748840500106,39.48,155.37,155.34,14.45786014]
[1748840501213,45.91624895,155.37,155.33,14.45786014]
[1748840501810,60.37410909,155.37,155.32,14.45786014]
[1748840503105,60.37410909,155.37,155.33,14.45786014]
[1748840503406,39.48,155.37,155.34,14.45786014]
[1748840504806,45.91632189,155.37,155.34,14.45786014]
[1748840504981,10.28,155.36,155.34,14.45786014]
[1748840505605,10.28,155.36,155.33,14.45786014]
[1748840508717,10.28,155.36,155.34,14.45786014]
[1748840510029,10.28,155.36,155.35,14.45786014]
[1748840512036,49.76,155.36,155.35,14.45786014]
[1748840512235,49.76,155.36,155.35,20.8949377]
[1748840512418,10.28,155.36,155.35,20.8949377]
[1748840513829,10.28,155.36,155.31,1.511]
[1748840514032,10.28,155.36,155.33,14.45786014]
[1748840514231,16.71670208,155.36,155.33,14.45786014]
[1748840514940,10.28,155.36,155.33,14.45786014]
[1748840515444,16.71674375,155.36,155.31,6.4386602]
[1748840515623,31.17460389,155.36,155.31,14.45786014]
[1748840516024,31.17460389,155.36,155.29,32.43921569]
[1748840516237,14.45786014,155.35,155.31,14.45786014]
[1748840517341,20.89516122,155.35,155.31,14.45786014]
[1748840518042,14.45786014,155.33,155.29,14.45786014]
[1748840518242,39.48,155.32,155.29,14.45786014]
[1748840518546,10.26,155.31,155.29,14.45786014]
[1748840519428,10.26,155.31,155.27,1.6067]
[1748840519631,14.45786014,155.3,155.23,1.518]
[1748840519831,16.69900564,155.31,155.23,15.97586014]
[1748840519832,14.45786014,155.27,155.23,15.97586014]
[1748840520143,49.74,155.26,155.23,14.45786014]
[1748840521345,49.74,155.26,155.23,20.89965585]
[1748840521645,49.74,155.26,155.24,14.45786014]
[1748840521818,49.74,155.26,155.23,6.44179571]
[1748840522023,49.74,155.26,155.24,14.45786014]
[1748840522236,49.74,155.26,155.25,14.45786014]
[1748840522442,10.26,155.26,155.25,14.45786014]
[1748840523243,10.26,155.26,155.25,22.51528397]
[1748840523646,10.26,155.3,155.26,18.64964886]
[1748840523832,10.26,155.32,155.29,14.45786014]
[1748840524034,39.5,155.31,155.26,18.64964886]
[1748840524345,39.5,155.31,155.3,14.45786014]
[1748840525253,10.26,155.32,155.3,20.89696758]
[1748840525444,39.52,155.31,155.3,20.89696758]
[1748840525753,39.52,155.31,155.28,14.45786014]
[1748840525932,39.52,155.31,155.29,14.45786014]
[1748840526635,39.52,155.31,155.3,14.45786014]
[1748840526828,10.26,155.32,155.3,14.45786014]
[1748840527141,10.26,155.32,155.31,14.45786014]
[1748840527447,10.26,155.32,155.31,20.89659557]
[1748840528146,49.78,155.32,155.31,20.89659557]
[1748840531154,10.26,155.32,155.31,22.41599557]
[1748840531655,39.52,155.33,155.31,38.51283415]
[1748840531850,16.49894393,155.35,155.32,14.45786014]
[1748840532055,16.49894393,155.35,155.34,14.45786014]
[1748840532357,55.99894393,155.35,155.34,14.45786014]
[1748840533655,55.99894393,155.35,155.34,20.89535209]
[1748840533973,16.49894393,155.35,155.34,20.89535209]
[1748840534141,55.99894393,155.35,155.34,20.89535209]
[1748840534329,39.5,155.35,155.34,20.89535209]
[1748840537858,39.5,155.35,155.33,14.45786014]
[1748840538436,39.5,155.35,155.32,14.45786014]
[1748840538635,39.5,155.35,155.31,14.45786014]
[1748840538636,53.95786014,155.35,155.31,14.45786014]
[1748840539845,39.5,155.35,155.32,14.45786014]
[1748840543363,14.45786014,155.34,155.3,14.45786014]
[1748840543761,39.5,155.35,155.31,14.45786014]
[1748840543947,39.5,155.35,155.33,14.45786014]
[1748840544144,10.26,155.36,155.34,14.45786014]
[1748840544348,10.26,155.36,155.35,14.45786014]
[1748840544564,49.76,155.36,155.34,14.45786014]
[1748840545166,49.76,155.36,155.35,14.45786014]
[1748840545871,10.26,155.36,155.35,14.45786014]
[1748840546169,49.76,155.36,155.35,20.8949377]
[1748840546861,10.26,155.36,155.35,20.8949377]
[1748840547167,49.76,155.36,155.35,20.8949377]
[1748840548875,49.76,155.36,155.35,14.45786014]
[1748840549069,49.76,155.36,155.33,6.43790639]
[1748840549277,49.76,155.36,155.32,14.45786014]
[1748840549775,49.76,155.36,155.33,14.45786014]
[1748840550380,49.76,155.36,155.34,14.45786014]
[1748840550776,49.76,155.36,155.35,14.45786014]
[1748840550979,10.26,155.36,155.35,14.45786014]
[1748840551275,49.74,155.36,155.35,14.45786014]
[1748840551885,10.26,155.36,155.35,14.45786014]
[1748840552068,49.74,155.36,155.35,20.8949377]
[1748840553261,49.74,155.36,155.35,28.30436619]
[1748840554762,10.26,155.36,155.35,28.30436619]
[1748840554990,10.26,155.42,155.35,51.0332601]
[1748840555289,10.26,155.42,155.41,21.86728863]
[1748840555663,49.74,155.42,155.41,21.86728863]
[1748840556176,49.74,155.42,155.41,28.30188099]
[1748840561384,10.26,155.42,155.41,28.30188099]
[1748840561793,10.26,155.46,155.41,28.30188099]
[1748840561998,10.26,155.46,155.45,21.86728863]
[1748840562692,49.8,155.46,155.45,21.86728863]
[1748840562871,10.26,155.5,155.45,29.81042526]
[1748840563072,10.26,155.5,155.49,21.86728863]
[1748840563273,49.8,155.5,155.49,21.86728863]
[1748840564096,49.78,155.5,155.49,21.86728863]
[1748840564976,49.78,155.5,155.45,7.94313663]
[1748840565176,49.78,155.5,155.48,21.86728863]
[1748840565597,49.78,155.5,155.49,21.86728863]
[1748840569474,49.78,155.5,155.48,21.86728863]
[1748840569673,71.64728863,155.5,155.45,7.94302435]
[1748840569901,21.86728863,155.49,155.45,21.86728863]
[1748840570101,28.29891009,155.49,155.45,21.86728863]
[1748840570306,21.86728863,155.48,155.44,21.86728863]
[1748840570606,39.52,155.47,155.45,21.86728863]
[1748840570773,39.52,155.47,155.46,21.86728863]
[1748840571983,39.54,155.47,155.46,21.86728863]
[1748840572293,39.54,155.47,155.46,28.29981146]
[1748840573697,39.52,155.47,155.46,28.29981146]
[1748840575401,39.52,155.47,155.46,14.55474284]
[1748840577601,39.52,155.47,155.42,6.43417835]
[1748840577780,39.52,155.47,155.46,14.55474284]
[1748840577979,39.52,155.47,155.42,6.43417835]
[1748840578179,39.52,155.47,155.44,14.55474284]
[1748840579799,39.52,155.47,155.44,20.98794555]
[1748840579981,39.52,155.47,155.45,14.55474284]
[1748840580302,39.52,155.47,155.44,14.55474284]
[1748840580820,60.50698624,155.47,155.41,1.5865]
[1748840581112,14.55474284,155.46,155.41,14.55474284]
[1748840581283,10.28,155.45,155.43,14.55474284]
[1748840581484,39.54,155.44,155.43,14.55474284]
[1748840581885,39.54,155.44,155.43,20.98850723]
[1748840582281,10.28,155.45,155.43,20.98850723]
[1748840582479,10.28,155.45,155.44,14.55474284]
[1748840582679,49.82,155.45,155.44,14.55474284]
[1748840582882,49.82,155.45,155.43,14.55474284]
[1748840583791,49.82,155.45,155.44,14.55474284]
[1748840584039,49.82,155.45,155.43,14.55474284]
[1748840584508,49.82,155.45,155.44,14.55474284]
[1748840585401,49.82,155.45,155.44,20.98809332]
[1748840585575,49.8,155.45,155.44,20.98809332]
[1748840586906,49.8,155.45,155.43,14.55474284]
[1748840587405,49.8,155.45,155.41,6.43452767]
[1748840587598,14.55474284,155.44,155.4,14.55474284]
[1748840587781,14.55474284,155.41,155.35,16.10064284]
[1748840587982,14.55474284,155.44,155.35,14.55474284]
[1748840587983,14.55474284,155.39,155.35,14.55474284]
[1748840588703,64.37474284,155.4,155.35,14.55474284]
[1748840589013,49.82,155.4,155.38,14.55474284]
[1748840590116,49.82,155.4,155.39,14.55474284]
[1748840590117,10.28,155.4,155.39,14.55474284]
[1748840590288,49.82,155.4,155.39,14.55474284]
[1748840590484,10.28,155.4,155.39,14.55474284]
[1748840590812,49.84,155.4,155.39,14.55474284]
[1748840592819,49.84,155.4,155.39,20.99016339]
[1748840593685,39.56,155.4,155.39,20.99016339]
[1748840594208,39.56,155.41,155.39,20.99016339]
[1748840594505,39.56,155.41,155.4,14.55474284]
[1748840594808,39.56,155.41,155.38,6.43568438]
[1748840594994,14.55474284,155.43,155.39,14.55474284]
[1748840595306,39.56,155.44,155.41,14.55474284]
[1748840596019,54.11474284,155.44,155.4,14.55474284]
[1748840596906,54.11474284,155.44,155.4,20.98951102]
[1748840597707,54.11474284,155.44,155.4,14.55474284]
[1748840597908,54.11474284,155.44,155.4,20.98967242]
[1748840598697,39.56,155.44,155.41,14.55474284]
[1748840600109,39.56,155.44,155.41,20.98909015]
[1748840600606,14.55474284,155.43,155.39,20.9901091]
[1748840600816,54.11474284,155.44,155.39,20.9901091]
[1748840602510,54.11474284,155.44,155.38,20.99057756]
[1748840602511,14.55474284,155.42,155.38,20.99057756]
[1748840602686,39.52,155.41,155.38,14.55474284]
[1748840603297,10.3,155.43,155.4,14.55474284]
[1748840603512,39.52,155.42,155.41,14.55474284]
[1748840604508,10.3,155.43,155.41,20.9893352]
[1748840604705,39.52,155.42,155.41,20.9893352]
[1748840605110,39.52,155.42,155.4,20.98960348]
[1748840606400,39.52,155.42,155.39,6.43525731]
[1748840606598,14.55474284,155.41,155.37,16.07494284]
[1748840606797,14.55474284,155.41,155.37,20.99092001]
[1748840607798,20.98937972,155.41,155.35,6.43707756]
[1748840607999,20.98937972,155.41,155.36,14.55474284]
[1748840608424,14.55474284,155.4,155.35,20.9918204]
[1748840609116,6.43463688,155.41,155.33,1.6572]
[1748840609117,14.55474284,155.37,155.33,1.6572]
[1748840609300,39.52,155.36,155.33,8.09494678]
[1748840609496,39.52,155.36,155.33,22.64968962]
[1748840609696,39.52,155.36,155.35,14.55474284]
[1748840610724,39.52,155.36,155.34,6.43728484]
[1748840611021,39.52,155.36,155.35,14.55474284]
[1748840612400,39.52,155.36,155.34,20.99202768]
[1748840612727,39.52,155.36,155.34,14.55474284]
[1748840613422,39.52,155.36,155.33,14.55474284]
[1748840613620,54.07474284,155.36,155.31,20.99309699]
[1748840613823,14.55474284,155.34,155.3,14.55474284]
[1748840614199,14.55474284,155.35,155.31,14.55474284]
[1748840614413,60.51151896,155.36,155.32,14.55474284]
[1748840614639,14.55474284,155.35,155.3,6.43915003]
[1748840614808,14.55474284,155.35,155.31,14.55474284]
[1748840615927,54.07474284,155.36,155.32,20.99291187]
[1748840616107,14.55474284,155.33,155.29,6.43942692]
[1748840616315,39.58,155.32,155.29,20.99416976]
[1748840616520,39.62,155.31,155.3,14.55474284]
[1748840616901,39.62,155.31,155.29,6.43942692]
[1748840617102,39.62,155.31,155.29,14.55474284]
[1748840617517,39.62,155.31,155.28,14.55474284]
[1748840619124,39.62,155.31,155.28,20.99466396]
[1748840619503,39.62,155.31,155.29,14.55474284]
[1748840619699,39.62,155.31,155.28,14.55474284]
[1748840619904,39.62,155.31,155.27,14.55474284]
[1748840620213,60.61366852,155.31,155.26,14.55474284]
[1748840621030,60.61366852,155.31,155.27,14.55474284]
[1748840621803,46.05892568,155.31,155.27,14.55474284]
[1748840622125,39.62,155.31,155.28,14.55474284]
[1748840622436,39.62,155.31,155.29,14.55474284]
[1748840622602,54.17474284,155.31,155.27,14.55474284]
[1748840623638,54.17474284,155.31,155.26,20.99546673]
[1748840624136,60.61355168,155.31,155.26,20.99546673]
[1748840624424,39.62,155.31,155.29,14.55474284]
[1748840625135,39.62,155.31,155.27,6.44039049]
[1748840625305,39.62,155.31,155.29,14.55474284]
[1748840626419,60.61360456,155.31,155.27,14.55474284]
[1748840627336,46.05886172,155.31,155.27,14.55474284]
[1748840627632,60.61360456,155.31,155.27,14.55474284]
[1748840628330,46.05886172,155.31,155.27,14.55474284]
[1748840628631,39.62,155.31,155.28,14.55474284]
[1748840628807,39.62,155.31,155.26,6.44067556]
[1748840629012,54.17474284,155.31,155.27,14.55474284]
[1748840629224,39.62,155.31,155.28,14.55474284]
[1748840629425,39.62,155.31,155.25,1.5491]
[1748840629426,60.61367628,155.31,155.27,14.55474284]
[1748840631124,39.62,155.31,155.29,14.55474284]
[1748840632628,148.9,155.32,155.3,14.55474284]
[1748840632837,39.58,155.31,155.3,14.55474284]
[1748840633033,39.58,155.31,155.29,14.55474284]
[1748840633732,148.9,155.32,155.29,14.55474284]
[1748840633932,39.58,155.31,155.29,14.55474284]
[1748840634237,39.58,155.31,155.28,14.55474284]
[1748840634431,169.89307892,155.32,155.28,14.55474284]
[1748840634629,39.58,155.31,155.28,14.55474284]
[1748840635638,39.58,155.31,155.29,14.55474284]
[1748840638438,39.58,155.31,155.28,14.55474284]
[1748840638921,60.57351371,155.31,155.25,7.99017795]
[1748840639240,60.57351371,155.31,155.26,14.55474284]
[1748840639737,39.58,155.31,155.28,14.55474284]
[1748840639941,60.57348245,155.31,155.27,14.55474284]
[1748840640545,60.57348245,155.31,155.25,7.99017795]
[1748840640726,60.57348245,155.31,155.27,14.55474284]
[1748840640926,20.99424826,155.3,155.26,14.55474284]
[1748840641733,60.57362337,155.31,155.27,14.55474284]
[1748840641946,10.32,155.3,155.28,14.55474284]
[1748840642247,10.32,155.3,155.29,14.55474284]
[1748840642636,10.32,155.3,155.28,14.55474284]
[1748840642834,10.32,155.3,155.27,14.55474284]
[1748840643151,16.75917691,155.3,155.27,14.55474284]
[1748840644535,10.32,155.3,155.28,14.55474284]
[1748840644742,10.32,155.3,155.25,1.5491]
[1748840644743,10.32,155.3,155.29,14.55474284]
[1748840645037,10.32,155.3,155.28,14.55474284]
[1748840645240,10.32,155.3,155.27,14.55474284]
[1748840645618,39.62,155.29,155.27,14.55474284]
[1748840646427,39.62,155.29,155.28,14.55474284]
[1748840646825,39.62,155.29,155.27,14.55474284]
[1748840647029,46.05956805,155.29,155.26,14.55474284]
[1748840647236,46.05956805,155.29,155.25,16.10384284]
[1748840647822,39.62,155.29,155.26,14.55474284]
[1748840648529,46.05961138,155.29,155.26,14.55474284]
[1748840648723,46.05961138,155.29,155.25,14.55474284]
[1748840650443,46.05961138,155.29,155.26,14.55474284]
[1748840650638,46.05961138,155.29,155.23,6.44205372]
[1748840650834,46.05961138,155.29,155.25,14.55474284]
[1748840651021,46.05961138,155.29,155.23,6.44205372]
[1748840651221,60.61435422,155.29,155.22,8.07142367]
[1748840651426,14.55474284,155.27,155.22,8.07142367]
[1748840651647,14.55474284,155.27,155.23,14.55474284]
[1748840652837,14.55474284,155.27,155.22,8.07142367]
[1748840653040,14.55474284,155.26,155.21,14.72774284]
[1748840653240,49.92,155.25,155.21,14.72774284]
[1748840653444,14.55474284,155.24,155.21,0.173]
[1748840653627,14.55474284,155.23,155.21,0.173]
[1748840654947,14.55474284,155.24,155.21,0.173]
[1748840655556,58.36159906,155.25,155.21,14.72774284]
[1748840655854,72.9163419,155.25,155.21,14.72774284]
[1748840656331,14.55474284,155.24,155.21,0.173]
[1748840657440,20.99660687,155.24,155.21,0.173]
[1748840657645,14.55474284,155.22,155.21,0.173]
[1748840658061,148.9,155.23,155.21,0.173]
[1748840658365,163.45474284,155.22,155.21,0.173]
[1748840659463,169.89721159,155.22,155.21,0.173]
[1748840659842,214.54686045,155.22,155.21,0.173]
[1748840661042,46.99721159,155.22,155.21,0.173]
[1748840662537,65.64686045,155.22,155.21,0.173]
[1748840662832,46.99721159,155.22,155.21,0.173]
[1748840663868,65.66,155.22,155.21,0.173]
[1748840664557,26.0,155.22,155.21,0.173]
[1748840664747,65.64,155.22,155.21,0.173]
[1748840667157,86.63721159,155.22,155.21,0.173]
[1748840668757,105.28686045,155.22,155.21,0.173]
[1748840672165,90.73211761,155.22,155.21,0.173]
[1748840672366,105.28686045,155.22,155.21,0.173]
[1748840673475,86.63721159,155.22,155.21,0.173]
[1748840673662,12.32,155.25,155.21,0.173]
[1748840673852,12.32,155.25,155.24,14.55474284]
[1748840674054,51.98,155.25,155.24,14.55474284]
[1748840674273,51.98,155.25,155.21,14.72774284]
[1748840674465,56.42126869,155.25,155.21,0.173]
[1748840674767,70.97601153,155.25,155.21,14.72774284]
[1748840675371,70.97601153,155.25,155.21,0.173]
[1748840675578,70.97601153,155.25,155.21,14.72774284]
[1748840676173,2.0,155.24,155.21,14.72774284]
[1748840677263,2.0,155.24,155.22,14.55474284]
[1748840677448,10.32,155.25,155.23,14.55474284]
[1748840677647,39.8,155.24,155.23,14.55474284]
[1748840678054,39.8,155.24,155.21,6.61584117]
[1748840678380,39.8,155.24,155.23,14.55474284]
[1748840679151,39.8,155.24,155.23,20.99671268]
[1748840679759,39.8,155.24,155.23,14.55474284]
[1748840680987,10.32,155.25,155.23,20.99668104]
[1748840681286,39.78,155.24,155.23,20.99668104]
[1748840681476,39.78,155.24,155.23,14.55474284]
[1748840682959,10.32,155.25,155.23,14.55474284]
[1748840683273,39.76,155.24,155.23,14.55474284]
[1748840683886,39.76,155.24,155.23,20.99679656]
[1748840684580,10.32,155.25,155.23,20.99679656]
[1748840684792,10.32,155.25,155.24,14.55474284]
[1748840685276,10.32,155.25,155.24,20.99638159]
[1748840685480,148.9,155.27,155.24,20.99638159]
[1748840685690,39.74,155.26,155.25,1.6657]
[1748840685895,39.74,155.27,155.25,16.22044284]
[1748840686073,39.74,155.27,155.25,1.6657]
[1748840686983,39.74,155.27,155.26,20.9955518]
[1748840687366,39.72,155.27,155.26,20.9955518]
[1748840687566,10.34,155.29,155.26,20.9955518]
[1748840687776,39.72,155.28,155.26,6.44080896]
[1748840688086,92.76,155.34,155.26,6.44080896]
[1748840688087,92.76,155.34,155.27,29.10948568]
[1748840688302,10.34,155.33,155.28,14.55474284]
[1748840688477,10.34,155.33,155.29,7.6488]
[1748840688795,39.76,155.34,155.29,7.6488]
[1748840688962,10.34,155.36,155.3,41.18667397]
[1748840689165,39.76,155.35,155.3,41.18667397]
[1748840689583,39.74,155.35,155.34,14.55474284]
[1748840689974,10.34,155.36,155.34,14.55474284]
[1748840690176,50.08,155.36,155.35,14.55474284]
[1748840691168,50.08,155.36,155.34,14.55474284]
[1748840691769,50.08,155.36,155.35,14.55474284]
[1748840693490,10.34,155.36,155.35,14.55474284]
[1748840693694,50.04,155.36,155.35,14.55474284]
[1748840694393,50.04,155.36,155.33,14.55474284]
[1748840694903,50.04,155.36,155.34,14.55474284]
[1748840696798,50.04,155.36,155.35,14.55474284]
[1748840698206,10.34,155.36,155.35,14.55474284]
[1748840698389,50.04,155.36,155.35,14.55474284]
[1748840698703,10.34,155.36,155.35,20.9918204]
[1748840698883,148.9,155.39,155.35,20.9918204]
[1748840699079,148.9,155.39,155.38,14.55474284]
[1748840699389,39.7,155.39,155.38,14.55474284]
[1748840699587,10.38,155.4,155.38,14.55474284]
[1748840699783,50.08,155.4,155.39,14.55474284]
[1748840700101,39.7,155.4,155.39,14.55474284]